bitfinex-derivatives/quotes_BTCF0:USTF0_20250810
["timestamp","ask_amount","ask_price","bid_price","bid_amount"]
[1754866289556,0.0001,119020.0,119010.0,3.38770141]
[1754866289758,0.0001,119020.0,119010.0,3.46307761]
[1754866289957,0.0001,119020.0,119010.0,3.28147492]
[1754866291569,0.02357,119020.0,119010.0,3.28147492]
[1754866293374,0.02357,119020.0,119010.0,3.35680917]
[1754866293769,0.02357,119020.0,119010.0,3.28147492]
[1754866294862,0.0001,119020.0,119010.0,3.28147492]
[1754866295069,0.0404034,119040.0,119030.0,0.1052479]
[1754866295265,0.0645434,119040.0,119030.0,1.86274456]
[1754866295469,0.0797534,119040.0,119030.0,1.86274456]
[1754866295671,0.1122634,119040.0,119030.0,1.86274456]
[1754866295870,0.1348634,119040.0,119030.0,1.86274456]
[1754866297366,0.1348634,119040.0,119030.0,1.87205873]
[1754866297569,0.1349634,119040.0,119030.0,1.87205873]
[1754866298779,0.1349634,119040.0,119030.0,1.87305873]
[1754866299975,0.1349634,119040.0,119030.0,1.62123207]
[1754866300280,0.1349634,119040.0,119030.0,1.87305873]
[1754866300877,0.1349634,119040.0,119030.0,1.87605873]
[1754866302076,0.0570734,119040.0,119030.0,1.87605873]
[1754866302385,0.1136634,119040.0,119030.0,1.87605873]
[1754866302580,0.1362634,119040.0,119030.0,1.87605873]
[1754866306588,0.1362634,119040.0,119030.0,3.03793873]
[1754866306791,0.1037534,119040.0,119030.0,3.03793873]
[1754866307192,0.0662834,119040.0,119030.0,3.03793873]
[1754866311091,0.0662834,119040.0,119030.0,2.31633873]
[1754866311293,0.0662834,119040.0,119030.0,3.03793873]
[1754866312188,0.0662834,119040.0,119030.0,3.11326619]
[1754866314092,0.0662834,119040.0,119030.0,2.39166619]
[1754866314293,0.0662834,119040.0,119030.0,2.86143953]
[1754866314499,0.0662834,119040.0,119030.0,3.11326619]
[1754866314687,0.0662834,119040.0,119030.0,3.03793873]
[1754866316495,0.1136634,119040.0,119030.0,3.03793873]
[1754866316796,0.1362634,119040.0,119030.0,3.03793873]
[1754866319801,0.1037534,119040.0,119030.0,3.03793873]
[1754866320298,0.0888834,119040.0,119030.0,2.31633873]
[1754866320505,0.0888834,119040.0,119030.0,3.03793873]
[1754866320803,0.0662834,119040.0,119030.0,3.03793873]
[1754866321003,0.0497134,119040.0,119030.0,3.03793873]
[1754866322507,0.0405034,119040.0,119030.0,3.03793873]
[1754866323504,0.0405034,119040.0,119030.0,3.11326619]
[1754866323698,0.0170334,119040.0,119030.0,3.11326619]
[1754866324309,0.0415134,119040.0,119030.0,3.11326619]
[1754866326908,0.0653934,119040.0,119030.0,3.11326619]
[1754866327209,0.0653934,119040.0,119030.0,3.03793873]
[1754866329515,0.0507234,119040.0,119030.0,3.03793873]
[1754866334014,0.0507234,119040.0,119030.0,2.31633873]
[1754866334216,0.0507234,119040.0,119030.0,3.03793873]
[1754866337117,0.0507234,119040.0,119030.0,3.11326619]
[1754866338017,0.0507234,119040.0,119030.0,3.03793873]
[1754866338315,0.0507234,119040.0,119030.0,3.14416522]
[1754866338913,0.0507234,119040.0,119030.0,2.37448522]
[1754866339215,0.47593106,119040.0,119030.0,2.8508177]
[1754866339418,0.72775772,119040.0,119030.0,2.7754379]
[1754866339718,0.47593106,119040.0,119030.0,3.02726456]
[1754866339919,0.47593106,119040.0,119030.0,2.7754379]
[1754866340120,0.47593106,119040.0,119030.0,3.02726456]
[1754866340416,0.47593106,119040.0,119030.0,3.02526456]
[1754866340716,0.47593106,119040.0,119030.0,3.03254949]
[1754866341314,0.47593106,119040.0,119030.0,2.7724379]
[1754866341517,0.47593106,119040.0,119030.0,3.02426456]
[1754866342324,0.47593106,119040.0,119030.0,2.7724379]
[1754866342520,0.47593106,119040.0,119030.0,3.02426456]
[1754866343715,0.35285106,119040.0,119030.0,3.02426456]
[1754866343934,0.0001,119040.0,119030.0,3.27609122]
[1754866344111,0.0001,119040.0,119030.0,3.02426456]
[1754866344316,0.0001,119040.0,119030.0,3.03280955]
[1754866344615,0.02302,119040.0,119030.0,3.03280955]
[1754866344816,0.0001,119040.0,119030.0,3.03280955]
[1754866347623,0.02302,119040.0,119030.0,3.03280955]
[1754866349526,0.12162,119040.0,119030.0,3.03280955]
[1754866349825,0.37344666,119040.0,119030.0,3.03280955]
[1754866350824,0.37344666,119040.0,119030.0,2.78098289]
[1754866351025,0.37344666,119040.0,119030.0,3.03280955]
[1754866351929,0.12162,119040.0,119030.0,3.03280955]
[1754866352125,0.12162,119040.0,119030.0,3.00468733]
[1754866358032,0.11534,119040.0,119030.0,2.78098289]
[1754866359432,0.11534,119040.0,119030.0,1.61910289]
[1754866360232,0.08593033,119040.0,119030.0,0.8432379]
[1754866360431,0.13206033,119040.0,119030.0,1.6105579]
[1754866362031,0.43975577,119040.0,119030.0,1.5893079]
[1754866362227,0.35576477,119040.0,119030.0,1.5893079]
[1754866362730,0.13206033,119040.0,119030.0,1.5893079]
[1754866364030,0.13206033,119040.0,119030.0,1.6646877]
[1754866365936,0.13206033,119040.0,119030.0,1.6869977]
[1754866366739,0.13206033,119040.0,119030.0,1.6116179]
[1754866367237,0.03960033,119040.0,119030.0,1.6116179]
[1754866370537,0.06465033,119040.0,119030.0,1.6116179]
[1754866370739,0.13192033,119040.0,119030.0,1.6116179]
[1754866373544,0.06465033,119040.0,119030.0,1.6116179]
[1754866374143,0.3163276,119040.0,119030.0,1.86329517]
[1754866374646,0.06465033,119040.0,119030.0,1.86329517]
[1754866374945,0.3163276,119040.0,119030.0,1.86329517]
[1754866376454,0.3163276,119040.0,119030.0,1.93867497]
[1754866377255,0.3003276,119040.0,119030.0,1.93867497]
[1754866378059,0.2912776,119040.0,119030.0,1.93867497]
[1754866378258,0.01682033,119040.0,119030.0,1.93867497]
[1754866378757,0.03960033,119040.0,119030.0,1.93867497]
[1754866378953,0.0001,119040.0,119030.0,1.93867497]
[1754866379157,0.0001,119040.0,119030.0,1.86329517]
[1754866379557,0.0001,119040.0,119030.0,3.02513517]
[1754866381257,0.0001,119040.0,119030.0,3.10051497]
[1754866382859,0.02288,119040.0,119030.0,3.10051497]
[1754866386258,0.02288,119040.0,119030.0,3.10047497]
[1754866389260,0.02288,119040.0,119030.0,3.02509517]
[1754866389458,0.27455727,119040.0,119030.0,3.13132166]
[1754866391360,0.27455727,119040.0,119030.0,2.87964439]
[1754866391561,0.02288,119040.0,119030.0,3.13132166]
[1754866393065,0.02288,119040.0,119030.0,3.02509517]
[1754866393964,0.02288,119040.0,119030.0,1.86325517]
[1754866394165,0.02288,119040.0,119030.0,1.14165517]
[1754866394365,0.02288,119040.0,119030.0,1.86325517]
[1754866395371,0.02288,119040.0,119030.0,1.09597517]
[1754866395571,0.02288,119040.0,119030.0,1.86321517]
[1754866398372,0.02288,119040.0,119030.0,1.6115379]
[1754866398563,0.02288,119040.0,119030.0,1.86321517]
[1754866401375,0.02288,119040.0,119030.0,1.14161517]
[1754866401875,0.02288,119040.0,119030.0,1.86321517]
[1754866402469,0.08526,119040.0,119030.0,1.86321517]
[1754866402675,0.117,119040.0,119030.0,1.6115379]
[1754866402875,0.04816,119040.0,119030.0,1.6115379]
[1754866403174,0.04816,119040.0,119030.0,1.86321517]
[1754866405570,0.02288,119040.0,119030.0,1.86321517]
[1754866412981,0.02288,119040.0,119030.0,3.02501517]
[1754866414084,0.02288,119040.0,119030.0,2.30341517]
[1754866414284,0.02288,119040.0,119030.0,3.02501517]
[1754866416082,0.0001,119040.0,119030.0,3.02501517]
[1754866416379,0.19366824,119070.0,119060.0,0.01429]
[1754866416380,0.09181861,119070.0,119060.0,0.01429]
[1754866416584,0.36547588,119070.0,119060.0,1.86080417]
[1754866416786,0.44944578,119070.0,119060.0,1.6091269]
[1754866417084,0.47206578,119070.0,119060.0,1.86080417]
[1754866417595,0.47606578,119070.0,119060.0,1.86080417]
[1754866417786,0.47616578,119070.0,119060.0,1.86090417]
[1754866418786,0.72784305,119070.0,119060.0,1.6092269]
[1754866419293,0.72384305,119070.0,119060.0,1.6092269]
[1754866419585,0.72584305,119070.0,119060.0,1.6092269]
[1754866419977,0.22248851,119070.0,119060.0,1.6092269]
[1754866420289,0.72584305,119070.0,119060.0,1.6092269]
[1754866420689,0.72384305,119070.0,119060.0,1.6092269]
[1754866420891,0.47216578,119070.0,119060.0,1.6102269]
[1754866421091,0.72384305,119070.0,119060.0,1.6102269]
[1754866421796,0.22048851,119070.0,119060.0,1.6102269]
[1754866421985,0.47216578,119070.0,119060.0,1.6102269]
[1754866424492,0.37568578,119070.0,119060.0,1.6102269]
[1754866424693,0.37568578,119070.0,119060.0,1.86190417]
[1754866425391,0.45018578,119070.0,119060.0,1.86190417]
[1754866425588,0.47216578,119070.0,119060.0,1.86190417]
[1754866426093,0.47216578,119070.0,119060.0,1.6102269]
[1754866426294,0.22048851,119070.0,119060.0,1.6102269]
[1754866426494,0.47216578,119070.0,119060.0,1.6102269]
[1754866433096,0.22048851,119070.0,119060.0,1.6102269]
[1754866433298,0.47216578,119070.0,119060.0,1.6102269]
[1754866433488,0.43759578,119070.0,119060.0,1.6102269]
[1754866433797,0.29171588,119070.0,119060.0,1.6102269]
[1754866434297,0.38819588,119070.0,119060.0,1.6102269]
[1754866434696,0.38819588,119070.0,119060.0,1.86190417]
[1754866437600,0.13651861,119070.0,119060.0,1.86190417]
[1754866438001,0.38819588,119070.0,119060.0,1.86190417]
[1754866444905,0.13651861,119070.0,119060.0,1.86190417]
[1754866445108,0.38819588,119070.0,119060.0,1.86190417]
[1754866445409,0.38819588,119070.0,119060.0,1.93738688]
[1754866446111,0.38819588,119070.0,119060.0,1.68570961]
[1754866446707,0.38819588,119070.0,119060.0,1.93738688]
[1754866446907,0.38819588,119070.0,119060.0,1.86190417]
[1754866447309,0.38819588,119070.0,119060.0,1.6102269]
[1754866447514,0.38819588,119070.0,119060.0,1.86190417]
[1754866455417,0.38819588,119070.0,119060.0,1.6102269]
[1754866455617,0.38819588,119070.0,119060.0,1.86190417]
[1754866456716,0.38819588,119070.0,119060.0,1.6102269]
[1754866456912,0.38819588,119070.0,119060.0,1.86190417]
[1754866459824,0.26909588,119070.0,119060.0,1.86190417]
[1754866460023,0.29277588,119070.0,119060.0,1.86190417]
[1754866461419,0.29277588,119070.0,119060.0,1.6102269]
[1754866461614,0.29277588,119070.0,119060.0,1.86190417]
[1754866462126,0.38781588,119070.0,119060.0,1.86190417]
[1754866463628,0.13613861,119070.0,119060.0,1.86190417]
[1754866463928,0.38781588,119070.0,119060.0,1.86190417]
[1754866467222,0.38781588,119070.0,119060.0,1.6102269]
[1754866467424,0.38781588,119070.0,119060.0,1.86190417]
[1754866470533,0.42360578,119070.0,119060.0,0.75905]
[1754866470737,0.72346305,119070.0,119060.0,1.32450961]
[1754866471030,0.72346305,119070.0,119060.0,1.32450971]
[1754866471331,0.72346305,119070.0,119060.0,1.249027]
[1754866472430,0.72546305,119070.0,119060.0,1.248027]
[1754866473225,0.22210851,119070.0,119060.0,1.248027]
[1754866473527,0.02578,119070.0,119060.0,1.86050427]
[1754866473728,0.27545727,119070.0,119060.0,1.86050427]
[1754866473933,0.27545727,119070.0,119060.0,1.86150427]
[1754866475131,0.0001,119070.0,119060.0,1.86150427]
[1754866475336,0.27545727,119070.0,119060.0,1.86150427]
[1754866476220,0.02378,119070.0,119060.0,1.86150427]
[1754866476530,0.27545727,119070.0,119060.0,1.86150427]
[1754866477933,0.35942717,119070.0,119060.0,1.86150427]
[1754866478733,0.35942717,119070.0,119060.0,1.609827]
[1754866478933,0.35942717,119070.0,119060.0,1.86150427]
[1754866479732,0.43017717,119070.0,119060.0,1.86150427]
[1754866480633,0.34620727,119070.0,119060.0,1.86150427]
[1754866480830,0.02378,119070.0,119060.0,1.86150427]
[1754866481032,0.27545727,119070.0,119060.0,1.86150427]
[1754866481735,0.27545727,119070.0,119060.0,1.93698698]
[1754866484136,0.02378,119070.0,119060.0,1.93698698]
[1754866484337,0.1077499,119070.0,119060.0,1.17018698]
[1754866484536,0.03306,119070.0,119060.0,1.93686698]
[1754866484739,0.28473727,119070.0,119060.0,1.93686698]
[1754866484937,0.36870717,119070.0,119060.0,1.93686698]
[1754866485139,0.38341717,119070.0,119060.0,1.93686698]
[1754866485339,0.45149717,119070.0,119060.0,1.93686698]
[1754866486841,0.1998199,119070.0,119060.0,1.86138427]
[1754866487042,0.45149717,119070.0,119060.0,1.86138427]
[1754866490342,0.0001,119070.0,119060.0,1.86138427]
[1754866490742,0.36936717,119070.0,119060.0,1.86130427]
[1754866490937,0.36818727,119070.0,119060.0,1.86130427]
[1754866491134,0.45215717,119070.0,119060.0,1.86130427]
[1754866491441,0.36818727,119070.0,119060.0,1.86130427]
[1754866492243,0.45215717,119070.0,119060.0,1.86130427]
[1754866493943,0.36008717,119070.0,119060.0,1.86130427]
[1754866495145,0.27611727,119070.0,119060.0,1.86130427]
[1754866495443,0.36008717,119070.0,119060.0,1.86130427]
[1754866495834,0.36008717,119070.0,119060.0,1.93678698]
[1754866496035,0.36936717,119070.0,119060.0,1.93678698]
[1754866496233,0.38407717,119070.0,119060.0,1.93678698]
[1754866496432,0.39956717,119070.0,119060.0,1.93678698]
[1754866496635,0.43113717,119070.0,119060.0,1.93678698]
[1754866496836,0.45215717,119070.0,119060.0,1.93678698]
[1754866498246,0.45215717,119070.0,119060.0,1.86130427]
[1754866499046,0.11651,119070.0,119060.0,1.86130427]
[1754866499243,0.36818727,119070.0,119060.0,1.86130427]
[1754866502951,0.45215717,119070.0,119060.0,1.86130427]
[1754866503850,0.36818727,119070.0,119060.0,1.86130427]
[1754866505453,0.11651,119070.0,119060.0,1.86130427]
[1754866505651,0.36818727,119070.0,119060.0,1.86130427]
[1754866505853,0.11651,119070.0,119060.0,1.86130427]
[1754866506054,0.36818727,119070.0,119060.0,1.86130427]
[1754866509058,0.36818727,119070.0,119060.0,1.93678698]
[1754866510458,0.36818727,119070.0,119060.0,1.86130427]
[1754866510762,0.36818727,119070.0,119060.0,1.93678698]
[1754866512351,0.36818727,119070.0,119060.0,1.93650698]
[1754866513460,0.27611727,119070.0,119060.0,1.93650698]
[1754866513760,0.27611727,119070.0,119060.0,1.86102427]
[1754866519773,0.29992727,119070.0,119060.0,1.86102427]
[1754866520369,0.29992727,119070.0,119060.0,1.13942427]
[1754866520575,0.29992727,119070.0,119060.0,1.93650698]
[1754866521076,0.04825,119070.0,119060.0,1.93650698]
[1754866521275,0.02444,119070.0,119060.0,1.93650698]
[1754866521474,0.02444,119070.0,119060.0,1.86102427]
[1754866523275,0.0001,119070.0,119060.0,2.11270154]
[1754866523665,0.0001,119070.0,119060.0,1.86102427]
[1754866523868,0.0001,119070.0,119060.0,1.96725076]
[1754866524269,0.02295,119070.0,119060.0,1.86102427]
[1754866524471,0.0001,119070.0,119060.0,1.86102427]
[1754866525180,0.02295,119070.0,119060.0,1.96725076]
[1754866525381,0.02295,119070.0,119060.0,1.86102427]
[1754866531686,0.04796,119070.0,119060.0,1.86102427]
[1754866531886,0.06196,119070.0,119060.0,1.86102427]
[1754866532688,0.02295,119070.0,119060.0,1.86102427]
[1754866533890,0.02295,119070.0,119060.0,1.96725076]
[1754866534292,0.02295,119070.0,119060.0,1.86102427]
[1754866534791,0.03276,119070.0,119060.0,1.86102427]
[1754866534986,0.09606,119070.0,119060.0,1.93645913]
[1754866535788,0.11803,119070.0,119060.0,1.93645913]
[1754866536594,0.11803,119070.0,119060.0,1.68478186]
[1754866536895,0.2019998,119070.0,119060.0,1.95499737]
[1754866537194,0.11803,119070.0,119060.0,1.95499737]
[1754866538794,0.08393,119070.0,119060.0,1.87956251]
[1754866538990,0.04796,119070.0,119060.0,1.87956251]
[1754866539694,0.06986,119070.0,119060.0,1.62788524]
[1754866539896,0.45230717,119070.0,119060.0,1.87956251]
[1754866543597,0.2006299,119070.0,119060.0,1.87956251]
[1754866546899,0.2006299,119070.0,119060.0,1.95499737]
[1754866548004,0.11666,119070.0,119060.0,1.95499737]
[1754866549004,0.11666,119070.0,119060.0,1.23339737]
[1754866549207,0.11666,119070.0,119060.0,1.95499737]
[1754866551305,0.11666,119070.0,119060.0,1.87956251]
[1754866553207,0.08426,119070.0,119060.0,1.87956251]
[1754866553407,0.06986,119070.0,119060.0,1.87956251]
[1754866553909,0.04796,119070.0,119060.0,1.87956251]
[1754866555705,0.04796,119070.0,119060.0,1.15796251]
[1754866555904,0.04796,119070.0,119060.0,1.87956251]
[1754866558707,0.04796,119070.0,119060.0,1.15796251]
[1754866558907,0.04796,119070.0,119060.0,1.87956251]
[1754866560310,0.04796,119070.0,119060.0,1.62788524]
[1754866560606,0.04796,119070.0,119060.0,1.87956251]
[1754866561004,0.04796,119070.0,119060.0,1.95499737]
[1754866562506,0.04796,119070.0,119060.0,1.95431737]
[1754866564312,0.04796,119070.0,119060.0,1.87888251]
[1754866564614,0.29963727,119070.0,119060.0,1.87888251]
[1754866566908,0.29963727,119070.0,119060.0,1.62720524]
[1754866567109,0.29963727,119070.0,119060.0,1.87888251]
[1754866567813,0.04796,119070.0,119060.0,1.87888251]
[1754866568012,0.29963727,119070.0,119060.0,1.87888251]
[1754866569717,0.29963727,119070.0,119060.0,1.15728251]
[1754866570017,0.29963727,119070.0,119060.0,1.87888251]
[1754866572129,0.04796,119070.0,119060.0,1.87888251]
[1754866573223,0.06212,119070.0,119060.0,1.87888251]
[1754866574331,0.06212,119070.0,119060.0,1.62720524]
[1754866574532,0.06212,119070.0,119060.0,1.95439507]
[1754866576234,0.31379727,119070.0,119060.0,1.95439507]
[1754866576833,0.43087717,119070.0,119060.0,1.7027178]
[1754866577028,0.04796,119070.0,119060.0,1.18875507]
[1754866577233,0.04796,119070.0,119060.0,1.87868251]
[1754866577435,0.29963727,119070.0,119060.0,1.87868251]
[1754866578340,0.40593717,119070.0,119060.0,1.87868251]
[1754866578532,0.32196727,119070.0,119060.0,1.87868251]
[1754866579637,0.07029,119070.0,119060.0,1.87868251]
[1754866584238,0.04796,119070.0,119060.0,1.87868251]
[1754866586844,0.02295,119070.0,119060.0,1.87868251]
[1754866591947,0.02295,119070.0,119060.0,1.11324251]
[1754866592249,0.02295,119070.0,119060.0,1.87848251]
[1754866599555,0.02295,119070.0,119060.0,1.95399507]
[1754866601447,0.02295,119070.0,119060.0,1.59319507]
[1754866601653,0.02295,119070.0,119060.0,1.95399507]
[1754866602251,0.02295,119070.0,119060.0,1.87848251]
[1754866605149,0.02295,119070.0,119060.0,1.15688251]
[1754866605452,0.02295,119070.0,119060.0,1.87848251]
[1754866607456,0.02295,119070.0,119060.0,1.95399507]
[1754866607755,0.02295,119070.0,119060.0,1.87848251]
[1754866610252,0.02295,119070.0,119060.0,1.15688251]
[1754866610459,0.02295,119070.0,119060.0,1.87848251]
[1754866611259,0.02295,119070.0,119060.0,0.86156524]
[1754866611459,0.02295,119070.0,119060.0,1.87816251]
[1754866612162,0.02295,119070.0,119060.0,1.62648524]
[1754866612363,0.1069203,119070.0,119060.0,1.87816251]
[1754866612562,0.02295,119070.0,119060.0,1.95370826]
[1754866612764,0.02295,119070.0,119060.0,1.95370816]
[1754866613150,0.1069202,119070.0,119060.0,1.95370816]
[1754866613554,0.2004302,119070.0,119060.0,1.95370816]
[1754866616362,0.2004302,119070.0,119060.0,1.95362816]
[1754866616867,0.2004302,119070.0,119060.0,1.87808251]
[1754866617667,0.1320002,119070.0,119060.0,1.95363795]
[1754866617868,0.1320002,119070.0,119060.0,1.87808251]
[1754866618562,0.1779302,119070.0,119060.0,1.87808251]
[1754866622867,0.09396,119070.0,119060.0,1.87808251]
[1754866623067,0.04803,119070.0,119060.0,1.87808251]
[1754866623367,0.02295,119070.0,119060.0,1.11324251]
[1754866623566,0.02295,119070.0,119060.0,1.87796251]
[1754866626970,0.02295,119070.0,119060.0,1.62628524]
[1754866627171,0.02295,119070.0,119060.0,1.95350374]
[1754866630568,0.0001,119070.0,119060.0,2.20518101]
[1754866630771,0.0001,119070.0,119060.0,2.12963978]
[1754866630973,0.0001,119070.0,119060.0,1.87796251]
[1754866631167,0.02391,119070.0,119060.0,1.87796251]
[1754866636982,0.02391,119070.0,119060.0,1.95348374]
[1754866637183,0.02391,119070.0,119060.0,1.87796251]
[1754866637482,0.02391,119070.0,119060.0,1.984189]
[1754866641982,0.02391,119070.0,119060.0,2.05969299]
[1754866642187,0.02391,119070.0,119060.0,1.9534665]
[1754866644899,0.02391,119070.0,119060.0,1.87796251]
[1754866646705,0.02391,119070.0,119060.0,1.15636251]
[1754866646904,0.02391,119070.0,119060.0,1.87796251]
[1754866651403,0.02391,119070.0,119060.0,3.03944251]
[1754866653109,0.0001,119070.0,119060.0,3.39734627]
[1754866654311,0.02391,119070.0,119060.0,3.39734627]
[1754866654704,0.02391,119070.0,119060.0,3.4728896]
[1754866655201,0.02391,119070.0,119060.0,3.11498584]
[1754866657010,0.02391,119070.0,119060.0,3.0964476]
[1754866657211,0.02391,119070.0,119060.0,3.02090427]
[1754866658314,0.02391,119070.0,119060.0,3.27258154]
[1754866660418,0.02391,119070.0,119060.0,3.02090427]
[1754866661614,0.02391,119070.0,119060.0,3.27258154]
[1754866662111,0.0001,119070.0,119060.0,3.27258154]
[1754866662313,0.1691697,119100.0,119090.0,0.2047208]
[1754866662504,0.1999497,119100.0,119090.0,0.61247727]
[1754866662710,0.61956297,119100.0,119090.0,1.13708]
[1754866662914,0.61956297,119100.0,119090.0,1.47271407]
[1754866662915,0.3678857,119100.0,119090.0,1.47271407]
[1754866663113,0.3678857,119100.0,119090.0,1.2210368]
[1754866663314,0.87124024,119100.0,119090.0,1.2352268]
[1754866663519,0.87134024,119100.0,119090.0,1.2213368]
[1754866663714,0.87134024,119100.0,119090.0,1.2213367]
[1754866664222,0.3729857,119100.0,119090.0,1.2213367]
[1754866664519,0.87634024,119100.0,119090.0,1.2213367]
[1754866664714,0.8848786,119100.0,119090.0,1.2213367]
[1754866665114,0.38152406,119100.0,119090.0,1.2213367]
[1754866665316,0.63320133,119100.0,119090.0,1.48720397]
[1754866665722,0.63320133,119100.0,119090.0,1.2355267]
[1754866666114,0.38152406,119100.0,119090.0,1.2355267]
[1754866666321,0.3729857,119100.0,119090.0,1.2355267]
[1754866666522,0.62466297,119100.0,119090.0,1.48720397]
[1754866666714,0.3729857,119100.0,119090.0,1.2355267]
[1754866667223,0.63311244,119100.0,119090.0,1.2355267]
[1754866667825,0.62466297,119100.0,119090.0,1.2355267]
[1754866668014,0.3729857,119100.0,119090.0,1.48720397]
[1754866668217,0.62466297,119100.0,119090.0,1.48720397]
[1754866670515,0.62466297,119100.0,119090.0,1.2355267]
[1754866670716,0.62466297,119100.0,119090.0,1.48720397]
[1754866670916,0.3729857,119100.0,119090.0,1.48720397]
[1754866671113,0.62466297,119100.0,119090.0,1.48720397]
[1754866671626,0.45672697,119100.0,119090.0,1.48720397]
[1754866672026,0.42511697,119100.0,119090.0,1.48720397]
[1754866672324,0.45672697,119100.0,119090.0,1.2355267]
[1754866672526,0.45672697,119100.0,119090.0,1.48720397]
[1754866672713,0.70840424,119100.0,119090.0,1.2371267]
[1754866676724,0.45672697,119100.0,119090.0,1.2371267]
[1754866677126,0.47639574,119100.0,119090.0,1.2371267]
[1754866677623,0.47639574,119100.0,119090.0,1.2365667]
[1754866679028,0.45672697,119100.0,119090.0,1.2365667]
[1754866680332,0.70840424,119100.0,119090.0,1.2365667]
[1754866680632,0.45672697,119100.0,119090.0,1.2365667]
[1754866681329,0.45672697,119100.0,119090.0,1.2587067]
[1754866683422,0.2050497,119100.0,119090.0,1.2587067]
[1754866683629,0.45672697,119100.0,119090.0,1.2587067]
[1754866686330,0.47640018,119100.0,119090.0,1.2587067]
[1754866686725,0.45672697,119100.0,119090.0,1.2587067]
[1754866687027,0.2050497,119100.0,119090.0,1.2587067]
[1754866687230,0.70840424,119100.0,119090.0,1.2589067]
[1754866687425,0.2050497,119100.0,119090.0,1.2589067]
[1754866687626,0.70840424,119100.0,119090.0,1.2589067]
[1754866692333,0.72785598,119100.0,119090.0,1.2589067]
[1754866693834,0.22450144,119100.0,119090.0,1.2589067]
[1754866694033,0.72785598,119100.0,119090.0,1.2589067]
[1754866698436,0.47617871,119100.0,119090.0,1.2589067]
[1754866699843,0.45672697,119100.0,119090.0,1.2589067]
[1754866706349,0.2050497,119100.0,119090.0,1.2589067]
[1754866706551,0.70840424,119100.0,119090.0,1.2589067]
[1754866707754,0.2050497,119100.0,119090.0,1.2589067]
[1754866707950,0.70840424,119100.0,119090.0,1.2589067]
[1754866708251,0.2050497,119100.0,119090.0,1.2589067]
[1754866708445,0.70840424,119100.0,119090.0,1.2589067]
[1754866709051,0.47618025,119100.0,119090.0,1.2589067]
[1754866711159,0.22450298,119100.0,119090.0,1.2589067]
[1754866711557,0.47618025,119100.0,119090.0,1.2589067]
[1754866712559,0.10850298,119100.0,119090.0,1.2589067]
[1754866712763,0.38515025,119100.0,119090.0,1.51058397]
[1754866713658,0.13347298,119100.0,119090.0,1.51058397]
[1754866713858,0.38515025,119100.0,119090.0,1.51058397]
[1754866717358,0.40941025,119100.0,119090.0,1.51058397]
[1754866717564,0.40941025,119100.0,119090.0,1.2589067]
[1754866717764,0.40941025,119100.0,119090.0,1.51058397]
[1754866718063,0.45774025,119100.0,119090.0,1.2589067]
[1754866719068,0.43828697,119100.0,119090.0,1.2589067]
[1754866719967,0.46050697,119100.0,119090.0,1.2589067]
[1754866721067,0.71151424,119100.0,119090.0,1.2550267]
[1754866724071,0.73095393,119100.0,119090.0,1.2550267]
[1754866726870,0.22759939,119100.0,119090.0,1.2550267]
[1754866727073,0.73095393,119100.0,119090.0,1.2550267]
[1754866727572,0.47927666,119100.0,119090.0,1.2550267]
[1754866728778,0.47927666,119100.0,119090.0,0.8942267]
[1754866729076,0.47927666,119100.0,119090.0,1.2550267]
[1754866730277,0.22759939,119100.0,119090.0,1.2550267]
[1754866730469,0.47927666,119100.0,119090.0,1.2550267]
[1754866730776,0.22759939,119100.0,119090.0,1.2550267]
[1754866730976,0.47927666,119100.0,119090.0,1.2550267]
[1754866731176,0.47927666,119100.0,119090.0,1.50670397]
[1754866731478,0.47927666,119100.0,119090.0,1.2550267]
[1754866731668,0.47927666,119100.0,119090.0,1.50670397]
[1754866732477,0.22759939,119100.0,119090.0,1.50670397]
[1754866732677,0.47927666,119100.0,119090.0,1.50670397]
[1754866733876,0.45983697,119100.0,119090.0,1.50670397]
[1754866734080,0.2081597,119100.0,119090.0,1.2550267]
[1754866734382,0.36408697,119100.0,119090.0,1.50670397]
[1754866734578,0.36408697,119100.0,119090.0,0.4816667]
[1754866734772,0.45822697,119100.0,119090.0,1.50610397]
[1754866735382,0.38828697,119100.0,119090.0,1.2631067]
[1754866735571,0.45822697,119100.0,119090.0,1.2631067]
[1754866735877,0.2065497,119100.0,119090.0,1.2631067]
[1754866736078,0.45822697,119100.0,119090.0,1.2631067]
[1754866736273,0.45822697,119100.0,119090.0,0.4816667]
[1754866736579,0.2065497,119100.0,119090.0,0.4816667]
[1754866736772,0.45822697,119100.0,119090.0,1.2631067]
[1754866737271,0.45822697,119100.0,119090.0,0.4816667]
[1754866737471,0.72934373,119100.0,119090.0,1.2637867]
[1754866738179,0.47766646,119100.0,119090.0,1.2637867]
[1754866738379,0.22598919,119100.0,119090.0,1.2637867]
[1754866738580,0.47766646,119100.0,119090.0,1.2637867]
[1754866739180,0.72934373,119100.0,119090.0,1.2637867]
[1754866739381,0.22598919,119100.0,119090.0,1.2637867]
[1754866739582,0.22598919,119100.0,119090.0,1.51546397]
[1754866739783,0.22598919,119100.0,119090.0,1.2637867]
[1754866740082,0.42549697,119100.0,119090.0,1.2637867]
[1754866740270,0.45822697,119100.0,119090.0,1.2637867]
[1754866740469,0.45822697,119100.0,119090.0,1.2633467]
[1754866741283,0.2065497,119100.0,119090.0,1.51502397]
[1754866741487,0.45822697,119100.0,119090.0,1.51502397]
[1754866741678,0.45822697,119100.0,119090.0,1.2633467]
[1754866741877,0.2065497,119100.0,119090.0,0.4816667]
[1754866742185,0.45822697,119100.0,119090.0,0.4816667]
[1754866742376,0.45822697,119100.0,119090.0,1.2681867]
[1754866742572,0.45822697,119100.0,119090.0,0.4816667]
[1754866742772,0.2065497,119100.0,119090.0,1.2681867]
[1754866742977,0.45822697,119100.0,119090.0,1.2681867]
[1754866743983,0.45822697,119100.0,119090.0,1.2681467]
[1754866744884,0.2065497,119100.0,119090.0,1.2681467]
[1754866745083,0.45822697,119100.0,119090.0,1.2681467]
[1754866745984,0.2065497,119100.0,119090.0,1.2681467]
[1754866746177,0.45822697,119100.0,119090.0,1.2681467]
[1754866746382,0.70990424,119100.0,119090.0,1.2681467]
[1754866746783,0.2065497,119100.0,119090.0,1.2681467]
[1754866746983,0.70990424,119100.0,119090.0,1.2681467]
[1754866747384,0.2065497,119100.0,119090.0,1.2681467]
[1754866747574,0.45822697,119100.0,119090.0,1.2681467]
[1754866747878,0.2065497,119100.0,119090.0,1.2681467]
[1754866748073,0.45822697,119100.0,119090.0,1.2681467]
[1754866748382,0.2065497,119100.0,119090.0,1.2681467]
[1754866748582,0.45822697,119100.0,119090.0,1.2681467]
[1754866748878,0.2065497,119100.0,119090.0,1.2681467]
[1754866749085,0.45822697,119100.0,119090.0,1.2681467]
[1754866749388,0.45822697,119100.0,119090.0,0.4816667]
[1754866749577,0.2065497,119100.0,119090.0,1.2689067]
[1754866749777,0.45822697,119100.0,119090.0,1.2689067]
[1754866750887,0.2065497,119100.0,119090.0,1.2689067]